Cogmind - Beta 14 *** ADVENTURER MODE // 2024.08.15 @ 18:59:36 Player: LegoMDS Result: Destroyed by G-34 Mercenary with Small Laser Performance ------------- Evolutions (1) 500 Regions Visited (5) 1000 Robots Destroyed (61) 305 Value Destroyed (1876) 1876 Prototype IDs (26) 520 Alien Tech Used (0) 0 Bonus (313) 313 TOTAL SCORE: 4514 Bonus ------- High Alert Combat Kills 13 Aligned with FarCom 300 Cogmind --------- Core Integrity 0/400 Matter 124/300 Energy 107/275 System Corruption 8% Temperature Cool (6) Movement Core (300) Ox5 Location -9/Exiles Parts ------- > --- POWER (1) -------- Deuterium Engine > --- PROPULSION (3) --- (None) > --- UTILITY (3) ------ Small Storage Unit Improved Targeting Computer > --- WEAPON (2) ------- Longsword +1 > --- INVENTORY (8) ---- Cooling System Experimental Sensor Array Hacking Suite Autogun Improved Assault Rifle Peak State ------------ > --- POWER ------------ Deuterium Engine > --- PROPULSION ------- Titanium Leg Titanium Leg Titanium Leg > --- UTILITY ---------- Small Storage Unit Improved Targeting Computer Hardened Light Armor Plating > --- WEAPON ----------- Gauss Rifle Longsword +1 > --- INVENTORY -------- Deuterium Engine Cooling System Experimental Sensor Array Shield Generator Hacking Suite Autogun Improved Assault Rifle Mini Grenade Launcher [Rating: 31] Favorites ----------- Power Deuterium Engine Engine Deuterium Engine Power Core Light Nuclear Core Propulsion Titanium Leg Leg Titanium Leg Utility Small Storage Unit Device Structural Scanner Storage Small Storage Unit Processor Improved Targeting Computer Protection Hardened Light Armor Plating Weapon Autogun Ballistic Gun Autogun Ballistic Cannon Light Cannon Launcher Mini Grenade Launcher Impact Weapon Maul Slashing Weapon Longsword +1 Build | -11 -10 -10 -9 -9 -9 ------- Run | Yrd Mat Min Mat Min Exi Slots Evolved 2 | . . . 2 . . Power . | . . . . . . Propulsion 1 | . . . 1 . . Utility 1 | . . . 1 . . Weapon . | . . . . . . Parts Attached 43 | 6 3 3 21 2 8 Power 6 | 1 . . 4 . 1 Engine 5 | 1 . . 3 . 1 Core 1 | . . . 1 . . Reactor . | . . . . . . Propulsion 9 | 2 . 1 4 1 1 Treads . | . . . . . . Leg 9 | 2 . 1 4 1 1 Wheel . | . . . . . . Hover . | . . . . . . Flight . | . . . . . . Utility 12 | 1 1 2 7 . 1 Device 8 | . 1 2 4 . 1 Storage 2 | 1 . . 1 . . Processor 1 | . . . 1 . . Hackware . | . . . . . . Protection 1 | . . . 1 . . Artifact . | . . . . . . Weapon 16 | 2 2 . 6 1 5 Energy Gun . | . . . . . . Energy Cannon . | . . . . . . Ballistic Gun 10 | 2 2 . 3 1 2 Ballistic Cannon 2 | . . . 2 . . Launcher 1 | . . . . . 1 Special Weapon . | . . . . . . Impact Weapon 1 | . . . 1 . . Slashing Weapon 2 | . . . . . 2 Piercing Weapon . | . . . . . . Special Melee Weapon . | . . . . . . Unidentified Prototypes 3 | . . 1 2 . . Corrupted Parts 1 | . . . . 1 . System Corruption 2 | . . . . 2 . Parts Lost 11 | . . 1 2 . 8 Power 2 | . . . 1 . 1 Propulsion 4 | . . 1 . . 3 Utility 3 | . . . 1 . 2 Weapon 2 | . . . . . 2 Highest Loss Streak 8 | . . 1 1 . 8 To Critical Strikes . | . . . . . . Average Slot Usage (%) 98 | . 98 98 98 100 98 Engine 10 | . 14 14 9 11 11 Leg 31 | . 28 26 33 33 32 Device 7 | . 12 14 10 . . Storage 11 | . 14 14 11 11 11 Processor 7 | . . . 8 11 11 Protection 4 | . . . 1 11 10 Ballistic Gun 17 | . 28 28 13 16 15 Ballistic Cannon 4 | . . . 7 5 . Peak Build Rating 31 | 6 10 18 23 26 31 Average Rating 19 | 4 7 10 19 24 27 On Entrance 12 | . 6 10 11 23 26 Naked Turns . | . . . . . . Heaviest Build 26 | 12 15 15 25 26 26 Greatest Support 51 | 20 20 20 51 51 51 Greatest Overweight (x) . | . . . . . . Average Overweight (x) . | . . . . . . Largest Inventory Capacity 8 | 8 8 8 8 8 8 Average Capacity 7 | 6 8 8 8 8 8 Most Carried 8 | 3 8 8 8 8 8 Average Carried 7 | 1 5 7 7 7 7 Final Capacity 8 | 8 8 8 8 8 8 Final Carried 8 | 2 7 8 8 8 5 Class Distribution -------------------- 100% | Mutant Dominant Class ---------------- Mutant | -10/Materials Mutant | -10/Mines Mutant | -9/Materials Mutant | -9/Mines Mutant | -9/Exiles Resources | -11 -10 -10 -9 -9 -9 ----------- Run | Yrd Mat Min Mat Min Exi Matter Collected 1499 | 202 164 76 969 88 . Remotely . | . . . . . . Salvage Created 1851 | . 164 85 1013 169 420 Parts 113 | . 12 4 65 8 24 Haulers Intercepted . | . . . . . . Recyclers Shooed . | . . . . . . Parts Field Recycled . | . . . . . . Retrieved Matter . | . . . . . . Parts Self-Destructed . | . . . . . . Prevented . | . . . . . . Kills | -11 -10 -10 -9 -9 -9 ------- Run | Yrd Mat Min Mat Min Exi Combat Hostiles Destroyed 53 | . 5 2 29 4 13 Guns 33 | . 5 2 21 1 4 Cannons 11 | . . . 8 3 . AOE 9 | . . . . . 9 Classes Destroyed 10 | . 3 . 5 . 2 Worker 2 | . . . 2 . . Mechanic 1 | . . . 1 . . Operator 2 | . . . 2 . . Watcher 3 | . 1 . 2 . . Swarmer 13 | . 3 . 10 . . Grunt 24 | . 2 2 11 3 6 Brawler 3 | . . . 1 1 1 Sentry 7 | . . . 7 . . Hunter 4 | . . . . . 4 Programmer 2 | . . . . . 2 Best Kill Streak 10 | . 5 2 8 3 10 Combat Bots Only 10 | . 4 2 7 3 10 Max Kills in Single Turn 4 | . 1 1 2 1 4 Gunslinging . | . . . . . . Exploded 4 | . . . . . 4 Melee . | . . . . . . Uniques/NPCs Destroyed . | . . . . . . Combat | -11 -10 -10 -9 -9 -9 -------- Run | Yrd Mat Min Mat Min Exi Hostile Shots Fired 323 | . 32 15 139 7 130 Missed 103 | . 12 5 45 2 39 Damage Taken 2242 | . 182 103 864 65 1028 Core 424 | . 15 8 126 . 275 Absorbed by Shields 15 | . . . . . 15 Ignored by Resistances 679 | . 58 31 259 19 312 Regen/Repaired (Parts) 11 | . . . 11 . . Core Remaining (%) 95 | 100 . 90 . . . Volleys Fired 149 | . 18 7 96 7 21 Largest 2 | . 2 2 2 2 2 Hottest 58 | . 40 46 58 58 58 Shots Fired 284 | . 36 14 191 14 29 Gun 207 | . 36 14 125 7 25 Cannon 73 | . . . 66 7 . Launcher 4 | . . . . . 4 Special . | . . . . . . Kinetic 280 | . 36 14 191 14 25 Thermal . | . . . . . . Explosive 4 | . . . . . 4 Electromagnetic . | . . . . . . Robot Hit Streak 29 | . 6 15 29 9 15 Robot Miss Streak 4 | . 2 . 4 1 1 Penetration Max 1 | . . . . . 1 Secondary Targets 3 | . 1 1 1 . . Max Gunslinging Chain 1 | . 1 1 1 . . Shots Hit Robots 222 | . 22 14 150 12 24 Core Hits 97 | . 8 4 52 6 27 Critical Kills 1 | . . . 1 . . Critical Parts Destroyed 2 | . . . . . 2 Critical Strikes 5 | . . . 3 . 2 Destroy 3 | . . . 1 . 2 Blast 2 | . . . 2 . . Melee Attacks 1 | . . . 1 . . Impact 1 | . . . 1 . . Slashing . | . . . . . . Piercing . | . . . . . . Sneak Attacks . | . . . . . . Combat Hostiles . | . . . . . . Follow-up Attacks . | . . . . . . Damage Inflicted 4869 | . 290 211 2416 183 1769 Guns 2612 | . 290 211 1501 85 525 Cannons 1013 | . . . 915 98 . Explosions 1244 | . . . . . 1244 Melee . | . . . . . . Ramming . | . . . . . . Kinetic 3625 | . 290 211 2416 183 525 Thermal . | . . . . . . Explosive 1244 | . . . . . 1244 Electromagnetic . | . . . . . . Impact . | . . . . . . Slashing . | . . . . . . Piercing . | . . . . . . Highest Corruption 8 | . . . . 2 8 Average Corruption 2 | . . . . 2 2 Corruption Purged . | . . . . . . Corruption Blocked . | . . . . . . Effects 7 | . . . . 2 5 Message Errors 1 | . . . . . 1 Matter Fused 1 | . . . . 1 . Energy Discharges 1 | . . . . . 1 Parts Rejected 1 | . . . . . 1 Data Loss (minor) 1 | . . . . 1 . Misfires 1 | . . . . . 1 Weapon Failures 1 | . . . . . 1 Overload Shots . | . . . . . . Overflow Damage 14 | . . . . . 14 Projectiles . | . . . . . . Explosions 14 | . . . . . 14 Melee . | . . . . . . Knockbacks 6 | . . . 5 1 . Impact . | . . . . . . Kinetic 6 | . . . 5 1 . Secondary . | . . . . . . Self-Inflicted Damage 26 | . . . . . 26 Shots 1 | . . . . . 1 Rammed . | . . . . . . Targets Rammed . | . . . . . . Kicked . | . . . . . . Crushed . | . . . . . . Highest Temperature 91 | . 20 50 91 45 34 Average Temperature 21 | . 4 32 21 18 16 Received Heat Transfer 705 | . 111 75 402 39 78 Siege Activations . | . . . . . . Robots Corrupted . | . . . . . . Combat Hostiles . | . . . . . . Parts Fried . | . . . . . . Impact Corruptions . | . . . . . . Robots Melted . | . . . . . . Combat Hostiles . | . . . . . . Parts Melted . | . . . . . . Heat Transferred . | . . . . . . Parts Sabotaged . | . . . . . . Parts Stolen . | . . . . . . Parts Stripped . | . . . . . . Power Chain Reactions . | . . . . . . Alert | -11 -10 -10 -9 -9 -9 ------- Run | Yrd Mat Min Mat Min Exi Peak Influence 449 | . 142 55 449 224 . Initial 123 | . . . 18 123 . Average 137 | . 89 45 179 110 . Maximum Alert Level 2 | . . . 2 1 . Low Security (%) 71 | 100 100 100 58 73 . Level 1 23 | . . . 32 26 . Level 2 4 | . . . 8 . . Level 3 . | . . . . . . Level 4 . | . . . . . . Level 5 . | . . . . . . High Security . | . . . . . . Max Security . | . . . . . . Squads Dispatched 3 | . . . 3 . . Investigation . | . . . . . . Extermination . | . . . . . . Reinforcement 3 | . . . 3 . . Assault . | . . . . . . Garrison . | . . . . . . Intercept . | . . . . . . Searches Triggered . | . . . . . . Construction Impeded . | . . . . . . Haulers Reinforced . | . . . . . . Active Scanning Responses . | . . . . . . Cargo Convoy Interrupts . | . . . . . . Stealth | -11 -10 -10 -9 -9 -9 --------- Run | Yrd Mat Min Mat Min Exi Distress Signals 1 | . . . 1 . . Communications Jammed . | . . . . . . Distress Signals . | . . . . . . Times Spotted 79 | . 6 2 38 6 27 Peak Tracking Total 21 | . 3 2 7 3 21 Tactical Retreats 1 | . . . 1 . . Traps | -11 -10 -10 -9 -9 -9 ------- Run | Yrd Mat Min Mat Min Exi Traps Triggered . | . . . . . . Indirectly . | . . . . . . Trap Hack Attempts . | . . . . . . Triggered . | . . . . . . Disarmed . | . . . . . . Reprogrammed . | . . . . . . Reused . | . . . . . . Traps Extracted . | . . . . . . Installed . | . . . . . . Triggered . | . . . . . . Machines | -11 -10 -10 -9 -9 -9 ---------- Run | Yrd Mat Min Mat Min Exi Machines Disabled 2 | . . . 2 . . Max in Single Turn 1 | . . . 1 . . Machines Repaired . | . . . . . . Machines Dismantled . | . . . . . . Machines Sabotaged . | . . . . . . Overloaded Fab Kills . | . . . . . . Hacking | -11 -10 -10 -9 -9 -9 --------- Run | Yrd Mat Min Mat Min Exi Machines Accessed 3 | . . . 1 1 1 Terminals . | . . . . . . Fabricators . | . . . . . . Repair Stations 1 | . . . 1 . . Recycling Units . | . . . . . . Scanalyzers . | . . . . . . Garrison Access . | . . . . . . Total Hacks 4 | . . . 2 1 1 Successful 4 | . . . 2 1 1 Failed . | . . . . . . Catastrophic . | . . . . . . Database Lockouts . | . . . . . . Manual 1 | . . . . . 1 Terminals . | . . . . . . Fabricators . | . . . . . . Repair Stations 2 | . . . 2 . . Recycling Units . | . . . . . . Scanalyzers . | . . . . . . Garrison Access . | . . . . . . Terminal Hacks 2 | . . . . 1 1 Open Door 1 | . . . . 1 . Derelict Proto ID Bank 1 | . . . . . 1 Fabricator Hacks . | . . . . . . Repair Station Hacks 2 | . . . 2 . . Scan Component 1 | . . . 1 . . Repair 1 | . . . 1 . . Recycling Unit Hacks . | . . . . . . Scanalyzer . | . . . . . . Garrison Access Hacks . | . . . . . . Unauthorized Hacks . | . . . . . . Terminals . | . . . . . . Fabricators . | . . . . . . Repair Stations . | . . . . . . Recycling Units . | . . . . . . Scanalyzers . | . . . . . . Garrison Access . | . . . . . . Data Cores Recovered . | . . . . . . Used . | . . . . . . Hacking Detections 1 | . . . 1 . . Full Trace Events . | . . . . . . Feedback Events . | . . . . . . Feedback Blocked . | . . . . . . Robot Schematics Acquired . | . . . . . . Robots Built . | . . . . . . Authchips . | . . . . . . Time . | . . . . . . Total Robot Build Rating . | . . . . . . Part Schematics Acquired . | . . . . . . Parts Built . | . . . . . . Authchips . | . . . . . . Time . | . . . . . . Total Part Build Rating . | . . . . . . Parts Repaired 1 | . . . 1 . . Time 108 | . . . 108 . . Parts Recycled . | . . . . . . Recycled Matter . | . . . . . . Retrieved Matter . | . . . . . . Retrieved Components . | . . . . . . Parts Scanalyzed . | . . . . . . Part Schematics Acquired . | . . . . . . Parts Damaged . | . . . . . . Bothacking | -11 -10 -10 -9 -9 -9 ------------ Run | Yrd Mat Min Mat Min Exi Used RIF Installer . | . . . . . . Robots Hacked . | . . . . . . Non-combat . | . . . . . . Combat . | . . . . . . Robot Hacks Applied . | . . . . . . Relay Couplers Released . | . . . . . . Fabnet Peak Effective % . | . . . . . . Robots Rewired . | . . . . . . Allies Hacked . | . . . . . . Hacks Repelled . | . . . . . . Allies | -11 -10 -10 -9 -9 -9 -------- Run | Yrd Mat Min Mat Min Exi Total Allies 1 | . . . . 1 . Largest Group 1 | . . . . 1 1 Highest-Rated Group 31 | . . . . 31 31 Highest-Rated Ally 31 | . . . . 31 31 Total Orders . | . . . . . . Ally Attacks 3 | . . . . 3 . Total Damage 44 | . . . . 44 . Kills . | . . . . . . Allies Corrupted . | . . . . . . Allies Melted . | . . . . . . Intel | -11 -10 -10 -9 -9 -9 ------- Run | Yrd Mat Min Mat Min Exi Robot Analysis Total . | . . . . . . Derelict Logs Recovered 2 | . . . . 2 . Drone Launches . | . . . . . . Drone Recoveries . | . . . . . . Exploration | -11 -10 -10 -9 -9 -9 ------------- Run | Yrd Mat Min Mat Min Exi Turns Passed 3144 | 60 438 109 1411 772 354 Spaces Moved 1958 | 41 300 70 757 566 224 Core 3 | 3 . . . . . Treads . | . . . . . . Legs 1955 | 38 300 70 757 566 224 Wheels . | . . . . . . Hover . | . . . . . . Flight . | . . . . . . Fastest Speed 50 | 50 120 120 120 130 130 Average Speed 126 | 114 120 120 127 130 130 Slowest Speed 130 | 120 120 120 130 130 130 Overloaded Moves . | . . . . . . Propulsion Burnouts . | . . . . . . Robots Hopped . | . . . . . . Cave-ins Triggered . | . . . . . . Exploration Rate (%) 50 | 4 53 22 69 99 57 Regions Visited 5 Branch Regions 3 Pre-discovered Areas 2 | . . . . 2 . Known Exits Taken . | . . . . . . Unknown Exits Taken 5 | 1 1 1 1 1 . Scrap Searched 4 | . . 1 . 3 . Spaces Dug 1 | . . . 1 . . Terrain Destroyed 25 | . . . 1 . 24 Melee 1 | . . . 1 . . Projectile . | . . . . . . AOE 24 | . . . . . 24 Terrain Rammed . | . . . . . . Walls Destroyed . | . . . . . . Machines Disabled . | . . . . . . Actions | -11 -10 -10 -9 -9 -9 --------- Run | Yrd Mat Min Mat Min Exi Total 2357 | 54 343 83 1033 589 255 Wait 152 | . 10 . 132 10 . Move 1953 | 40 299 69 756 565 224 Hop . | . . . . . . Pick Up 34 | 8 9 3 11 2 1 Fast Attach 7 | . . . 5 1 1 Attach 16 | 6 1 1 5 . 3 Detach . | . . . . . . Swap 20 | . 2 2 11 1 4 Drop 25 | . 4 1 16 3 1 Fire 149 | . 18 7 96 7 21 Melee 1 | . . . 1 . . Ram . | . . . . . . Kick . | . . . . . . Crush . | . . . . . . Escape Stasis . | . . . . . . Rewire . | . . . . . . Trap . | . . . . . . Miscellaneous . | . . . . . . Route ------- -11/Scrapyard -10/Materials (discovered 2 exits: *Mat / [*Min]) -10/Mines -9/Materials (discovered 4 exits: [*Mat x2] / *Min / [*Sto]) -9/Mines (discovered 3 exits: [*Mat x2] / *Exi) -9/Exiles History --------- Turn | Location | Event 8 | -11/Scrapyard | Discovered new exit (range 15) 61 | -11/Scrapyard | Entered Materials 308 | -10/Materials | Build established: Mutant 308 | -10/Materials | Discovered new exit (range 3) 429 | -10/Materials | Discovered new exit (range 16) 499 | -10/Materials | Entered Mines 555 | -10/Mines | Discovered new exit (range 11) 558 | -10/Mines | Found a damaged Exp. Sensor Array with a note attached 561 | -10/Mines | Found Prototype Device 562 | -10/Mines | Identified Exp. Sensor Array 608 | -10/Mines | Entered Materials 608 | -9/Materials | Evolved 2 slots: Propulsion x1, Utility x1 738 | -9/Materials | Repaired Exp. Sensor Array 1260 | -9/Materials | Discovered new exit (range 4) 1412 | -9/Materials | Discovered new exit (range 13) 1617 | -9/Materials | Discovered new exit (range 13) 1707 | -9/Materials | Destroyed 7 combat bots 1969 | -9/Materials | Discovered new exit (range 9) 2019 | -9/Materials | Entered Mines 2023 | -9/Mines | Escorted by a lone wolf Derelict 2043 | -9/Mines | Learned location of Storage (-9) 2191 | -9/Mines | Discovered new exit (range 6) 2197 | -9/Mines | Discovered new exit (range 13) 2381 | -9/Mines | Met a Derelict who couldn't figure out how to use a Trap Extractor 2637 | -9/Mines | Learned location of Zion (-6) 2741 | -9/Mines | Learned Materials stockpile data 2786 | -9/Mines | Deemed a non-threat by the Exiles lab entrance 2786 | -9/Mines | Discovered new exit (range 5) 2791 | -9/Mines | Entered Exiles 2791 | -9/Exiles | Accompanied by 1 ally 2825 | -9/Exiles | Met 8R-AWN 2846 | -9/Exiles | Met EX-HEX 2884 | -9/Exiles | Met EX-BIN 2899 | -9/Exiles | Aligned with FarCom system 2901 | -9/Exiles | Given EX-Vault access code 2931 | -9/Exiles | Opened EX-Vault 2938 | -9/Exiles | Found Longsword +1 2966 | -9/Exiles | Warned to stay clear of 0b10 Research branches 2987 | -9/Exiles | Exiles lab attacked by MAIN.C 3106 | -9/Exiles | Lost 3 allies 3128 | -9/Exiles | Core integrity fell below 50% 3143 | -9/Exiles | Core integrity fell below 20% 3145 | -9/Exiles | Destroyed by G-34 Mercenary with Small Laser Last Messages --------------- Penetrated by Slug. System corrupted: Mni. Grenade Launcher failed to launch. G-34 Mercenary destroyed. Penetrated by Slug. Gauss Rifle destroyed. H-55 Commando destroyed. G-34 Mercenary destroyed. H-55 Commando destroyed. P-60 Hacker destroyed. Penetrated by Slug. Mni. Grenade Launcher destroyed. Penetrated by Slug. P-60 Hacker resets H-55 Commando, system corruption cleaned. P-60 Hacker resets G-34 Mercenary, system corruption cleaned. Titanium Leg destroyed. System corrupted by crushing effect (+4). Knocked back. Map ----- +----------------------------------------------------+ | """#?????????????????????????????????? | | """#?????????????????????????????????? | | """#?????????????????????????????????? | | """"?????????????????????????????????? | | """#?????????????????????????????????? | | " "X" """"?????????????????????????????????? | | " """ #?????????????????????????????????? | | " """""""""#?????????????????????????????????? | | " ###########?????????????????????????????????? | | " #???????????????????????????????????????????? | | #???????????????????????????????????????????? | | ##??????????????????????????????????????????? | | ##???###########???????????????????????????? | | #####"""""""""##??????????????????????????? | | " """ """"##?????????????????????????? | | "" " #?????????????????????????? | | " """#?????????????????????????? | | "a"#???????????#####?????????? | | " "##?????????##" #?????????? | | ""###???????#" #?????????? | | """ """#??######" ##????????? | | ##""" "### ###??????? | | ?#####""" # # ######## | | ?????##""" g =h[ [g #""""## | | ??????#"""" %=g %%*%=%h | | ??????#"" @ b/h===%=!## * | | ??????"""" !%h %gp* ### | | ????"" *gp![= ###"""""#### | | "??" %% ########??#### | | ? %% ##????????????# | | ? % #####?????????????? | | ? ####?????????????????? | | ? "" "" ##????????????????????? | | #??##""" " " ""# "##?????????????????????? | | ?????####""" """##"" " "##??????????????????????? | | ????????###""""#?#########???????????????????????? | | ??????????####???????????????????????????????????? | | ?????????????????????????????????????????????????? | | ?????????????????????????????????????????????????? | | ?????????????????????????????????????????????????? | | ?????????????????????????????????????????????????? | | ?????????????????????????????????????????????????? | | ?????????????????????????????????????????????????? | | ?????????????????????????????????????????????????? | | ?????????????????????????????????????????????????? | | ?????????????????????????????????????????????????? | | ?????????????????????????????????????????????????? | | ?????????????????????????????????????????????????? | | ?????????????????????????????????????????????????? | | ?????????????????????????????????????????????????? | +----------------------------------------------------+ Best States ------------- Heat Dissipation 50 Energy Generation 14 Energy Capacity 275 Matter Stores 300 Matter Capacity 300 Sight Range 16 Robot Scan Range 20 Terrain Scan Density 10 Armor Coverage 150 Resistance: KI 20 Resistance: TH 20 Resistance: EX 20 Resistance: EM 20 Resistance: I 20 Resistance: S 20 Resistance: P 20 Evasion (%) 55 Targeting Accuracy 6 Offensive Hacking 10 Item Schematics ----------------- None Robot Schematics ------------------ None Fabricated ------------ Nothing Alien Tech Used ----------------- None Achievements -------------- Hunted Challenges ------------ None Game ------ Seed HardcellUtilityThrower Manual? 0 Play Time 00:23:52 Cumulative 22.0 hours Start 2024.08.15 @ 18:36:34 End 2024.08.15 @ 18:59:36 Sessions 1 Manual Loads 0 Difficulty Adventurer Special Mode None Game No. 26 Rogue 13 Adventurer 13 Explorer 0 Win Type - Total 0 Types 0/0/0/0/0/0/0/0/0 Lore% 23 Gallery% 28 Achievement% 27 Wizard Run 0 Options --------- Layout 1 ASCII 0 Keyboard 0 Movement Mouse Keybinds 0 Fullscreen 1 Font 24/Smallcaps Map View 50x35 Zoom Use 0% Tactical HUD 0 Map Filters NONE Filters NONE Steam 1 RUN: 0e496d75-eab8-4c6d-ab1d-a2e52e02c887